bitfinex/quotes_SOLUSD_20250802
["timestamp","ask_amount","ask_price","bid_price","bid_amount"]
[1754145671492,0.03,163.2,163.19,21.1287807]
[1754145671652,0.2,163.27,163.2,21.1287807]
[1754145671849,0.2,163.27,163.22,10.56439035]
[1754145672300,0.2,163.27,163.25,10.56439035]
[1754145674125,0.2,163.27,163.25,11.17694777]
[1754145674821,0.2,163.27,163.25,0.61255742]
[1754145674979,0.2,163.27,163.25,10.56439035]
[1754145675507,0.69,163.26,163.25,10.56439035]
[1754145675709,0.69,163.26,163.24,10.56439035]
[1754145676380,0.66,163.25,163.2,0.61274509]
[1754145676617,0.66,163.24,163.22,10.56439035]
[1754145676822,0.03,163.26,163.23,10.56439035]
[1754145677204,0.66,163.25,163.23,10.56439035]
[1754145677529,0.66,163.24,163.2,10.56439035]
[1754145677699,36.56439035,163.23,163.18,10.56439035]
[1754145678081,0.66,163.22,163.13,0.61300803]
[1754145678418,0.66,163.22,163.18,10.56439035]
[1754145678615,26.0,163.2,163.16,10.56439035]
[1754145678915,0.66,163.19,163.16,10.56439035]
[1754145680414,0.66,163.18,163.16,10.56439035]
[1754145680613,0.66,163.18,163.15,10.56439035]
[1754145681134,0.66,163.17,163.11,0.61308319]
[1754145681430,0.66,163.17,163.14,10.56439035]
[1754145681589,0.66,163.17,163.15,10.56439035]
[1754145682590,0.66,163.16,163.13,10.56439035]
[1754145682803,0.66,163.15,163.11,10.56439035]
[1754145683001,0.66,163.14,163.1,10.56439035]
[1754145683208,0.66,163.13,163.1,10.56439035]
[1754145684008,36.56439035,163.15,163.1,10.56439035]
[1754145684225,0.66,163.12,163.09,10.56439035]
[1754145684394,0.66,163.11,163.06,0.61327118]
[1754145684597,0.66,163.1,163.03,0.67338403]
[1754145684823,0.66,163.1,163.08,10.56439035]
[1754145685194,0.66,163.1,163.07,10.56439035]
[1754145685989,0.66,163.1,163.03,0.67338403]
[1754145686229,26.0,163.13,163.03,0.67338403]
[1754145686230,0.66,163.09,163.07,10.56439035]
[1754145686395,11.22439035,163.12,163.07,10.56439035]
[1754145686719,0.66,163.11,163.07,10.56439035]
[1754145687089,26.0,163.13,163.03,0.67338403]
[1754145687090,36.56439035,163.13,163.08,10.56439035]
[1754145687293,11.22439035,163.12,163.08,10.56439035]
[1754145687516,0.66,163.11,163.03,0.67338403]
[1754145687733,0.66,163.11,163.07,10.56439035]
[1754145688027,0.66,163.1,163.07,10.56439035]
[1754145688233,0.66,163.11,163.08,10.56439035]
[1754145689213,10.56439035,163.12,163.03,0.67338403]
[1754145689520,26.0,163.13,163.08,10.56439035]
[1754145689719,0.66,163.12,163.08,10.56439035]
[1754145690037,0.66,163.11,163.07,10.56439035]
[1754145690209,0.66,163.1,163.07,10.56439035]
[1754145690405,0.66,163.09,163.06,10.56439035]
[1754145690716,0.61327118,163.12,163.07,10.56439035]
[1754145690717,10.56439035,163.12,163.07,10.56439035]
[1754145691036,0.69,163.11,163.07,10.56439035]
[1754145691238,11.17766153,163.12,163.07,10.56439035]
[1754145691536,0.69,163.1,163.06,10.56439035]
[1754145691744,0.69,163.09,163.05,10.56439035]
[1754145691946,26.0,163.07,163.03,10.62439035]
[1754145692255,0.69,163.06,163.03,0.06]
[1754145692435,0.69,163.06,163.03,10.62439035]
[1754145693363,26.0,163.07,163.05,10.56439035]
[1754145693720,26.69,163.07,163.04,10.56439035]
[1754145694330,0.69,163.06,163.04,10.56439035]
[1754145694939,0.69,163.05,163.03,10.62439035]
[1754145695248,0.69,163.04,163.03,0.06]
[1754145697371,26.0,163.05,163.03,0.06]
[1754145697541,0.69,163.04,163.03,0.06]
[1754145698954,11.25439035,163.04,163.03,0.06]
[1754145699528,28.6523455,163.04,163.03,0.06]
[1754145699734,18.08795515,163.04,163.03,0.06]
[1754145699934,28.6523455,163.04,163.03,0.06]
[1754145700334,28.6523455,163.04,163.01,0.06]
[1754145700335,42.78468397,163.02,163.01,0.06]
[1754145700576,17.39795515,163.02,163.01,0.06]
[1754145700780,18.08795515,163.02,163.01,0.06]
[1754145701061,17.47468397,163.02,163.01,0.06]
[1754145701244,28.03907432,163.02,163.01,0.06]
[1754145701426,26.69,163.02,163.01,0.06]
[1754145702032,0.69,163.02,163.01,0.06]
[1754145702267,54.6523455,163.02,162.96,0.06]
[1754145702440,36.56439035,162.99,162.96,0.06]
[1754145702638,36.56439035,162.97,162.96,0.06]
[1754145702838,26.0,162.95,162.91,0.1]
[1754145703584,26.0,162.95,162.94,10.56439035]
[1754145703870,26.0,162.96,162.91,0.28]
[1754145704283,0.69,162.95,162.91,0.1]
[1754145704476,26.69,162.98,162.94,10.56439035]
[1754145704687,26.0,162.98,162.96,10.56439035]
[1754145705058,0.69,162.97,162.91,0.71383586]
[1754145705263,0.69,162.97,162.91,0.1]
[1754145705264,27.9623455,162.96,162.91,0.1]
[1754145705561,0.69,162.97,162.95,10.56439035]
[1754145705562,26.0,162.97,162.95,10.56439035]
[1754145705767,26.0,162.97,162.94,10.56439035]
[1754145705964,0.69,162.96,162.91,0.1]
[1754145706168,26.0,162.97,162.95,10.56439035]
[1754145706490,0.69,163.01,162.96,10.56439035]
[1754145706681,0.69,163.04,162.97,0.18]
[1754145706883,0.69,163.04,163.02,10.56439035]
[1754145707194,0.69,163.04,163.03,10.56439035]
[1754145707365,0.69,163.06,163.03,10.56439035]
[1754145707692,0.69,163.09,163.05,10.56439035]
[1754145707999,0.69,163.08,163.06,10.56439035]
[1754145708804,26.69,163.08,163.06,10.56439035]
[1754145709095,26.69,163.08,163.03,10.56439035]
[1754145709096,0.69,163.07,163.03,10.56439035]
[1754145709409,26.0,163.03,162.99,10.56439035]
[1754145709565,0.69,163.02,162.99,10.56439035]
[1754145709765,0.69,163.02,162.96,0.61364752]
[1754145709981,0.69,163.02,163.0,10.56439035]
[1754145710271,0.69,163.01,162.98,10.56439035]
[1754145710495,26.69,163.0,162.93,0.79376051]
[1754145710673,26.69,163.0,162.98,10.56439035]
[1754145711291,0.69,162.99,162.98,10.56439035]
[1754145711462,26.0,163.0,162.98,10.56439035]
[1754145711661,0.69,163.04,162.99,10.56439035]
[1754145711906,26.0,163.03,163.02,10.56439035]
[1754145712288,26.0,163.03,163.01,10.56439035]
[1754145712577,26.69,163.02,163.0,10.56439035]
[1754145712974,26.69,163.02,162.96,0.61364752]
[1754145713306,26.69,163.02,163.0,10.56439035]
[1754145714920,26.69,163.02,162.96,0.61364752]
[1754145715131,26.69,163.02,163.0,10.56439035]
[1754145715327,0.69,163.01,162.94,0.61372284]
[1754145715631,0.69,163.01,162.99,10.56439035]
[1754145716113,26.0,163.02,162.99,10.56439035]
[1754145716315,0.69,163.04,163.01,10.56439035]
[1754145716482,0.69,163.03,163.01,10.56439035]
[1754145717221,0.69,163.02,163.0,10.56439035]
[1754145717519,0.69,163.02,162.99,10.56439035]
[1754145717821,0.69,163.01,162.99,10.56439035]
[1754145718129,0.69,163.0,162.97,10.56439035]
[1754145718422,26.69,162.99,162.96,0.06]
[1754145718622,0.69,162.98,162.96,0.06]
[1754145719020,0.69,162.98,162.96,10.62439035]
[1754145720002,26.0,162.98,162.96,0.06]
[1754145720201,0.69,162.97,162.96,0.06]
[1754145720406,0.69,163.0,162.96,10.62439035]
[1754145720624,0.69,162.99,162.96,10.62439035]
[1754145720794,26.0,162.97,162.96,0.06]
[1754145721194,26.65,162.97,162.96,0.06]
[1754145721427,0.65,162.97,162.96,0.06]
[1754145722434,1.26327118,162.97,162.96,0.06]
[1754145722630,0.65,162.97,162.96,0.06]
[1754145724234,53.99907432,162.97,162.96,0.06]
[1754145724411,11.21439035,162.97,162.96,0.06]
[1754145724798,37.21439035,162.97,162.96,0.06]
[1754145725023,27.99907432,162.97,162.96,0.06]
[1754145725334,21.8739808,162.97,162.96,0.06]
[1754145725536,32.43837115,162.97,162.96,0.06]
[1754145726252,31.78837115,162.97,162.96,0.06]
[1754145726397,21.8739808,162.97,162.96,0.06]
[1754145726597,33.05164233,162.97,162.96,0.06]
[1754145726826,26.0,162.94,162.91,0.1]
[1754145727099,16.78468397,162.96,162.91,0.1]
[1754145727100,10.56439035,162.92,162.91,0.1]
[1754145727500,16.78468397,162.91,162.9,0.06]
[1754145727799,16.78468397,162.91,162.79,0.1]
[1754145727800,42.78468397,162.89,162.88,3.0385342]
[1754145727999,69.41473837,162.89,162.88,2.4785342]
[1754145728524,72.48098984,162.89,162.88,2.4785342]
[1754145728835,26.61327118,162.89,162.88,2.4785342]
[1754145729034,36.56439035,162.89,162.88,2.4785342]
[1754145729269,0.61327118,162.91,162.88,3.1785342]
[1754145729423,11.17766153,162.9,162.88,2.4785342]
[1754145729629,10.56439035,162.89,162.88,2.4785342]
[1754145729855,11.17766153,162.9,162.88,2.4785342]
[1754145730035,7.01972454,162.97,162.88,2.4785342]
[1754145730036,30.43602637,162.89,162.88,13.04292455]
[1754145730451,3.71602637,162.89,162.88,13.04292455]
[1754145730653,11.17766153,162.96,162.88,30.52760852]
[1754145730838,11.17766153,162.96,162.91,10.56439035]
[1754145731153,10.56439035,162.98,162.93,10.56439035]
[1754145731381,10.56439035,162.99,162.94,10.56439035]
[1754145731574,10.56439035,162.95,162.89,0.7]
[1754145731869,36.56439035,162.9,162.88,2.4785342]
[1754145732077,11.17766153,162.89,162.88,2.4785342]
[1754145732577,11.82766153,162.89,162.88,2.4785342]
[1754145734167,11.17766153,162.89,162.88,2.4785342]
[1754145734377,11.82766153,162.89,162.88,2.4785342]
[1754145734838,11.17766153,162.89,162.88,2.4785342]
[1754145735352,11.82766153,162.89,162.88,2.4785342]
[1754145735970,28.6123455,162.89,162.88,2.4785342]
[1754145736155,34.75145778,162.89,162.88,2.4785342]
[1754145736345,28.6123455,162.89,162.88,2.4785342]
[1754145737139,26.61327118,162.89,162.88,2.4785342]
[1754145737356,37.17766153,162.89,162.88,2.4785342]
[1754145738056,37.82766153,162.89,162.88,2.4785342]
[1754145738953,26.61327118,162.89,162.88,2.4785342]
[1754145739174,37.17766153,162.89,162.88,2.4785342]
[1754145739853,37.82766153,162.89,162.88,2.4785342]
[1754145740042,37.17766153,162.89,162.88,2.4785342]
[1754145740242,37.82766153,162.89,162.88,2.4785342]
[1754145740883,37.17766153,162.89,162.88,2.4785342]
[1754145743194,26.61327118,162.89,162.88,3.1785342]
[1754145743369,37.17766153,162.89,162.88,3.1785342]
[1754145744296,37.17766153,162.89,162.88,2.4785342]
[1754145744610,37.82766153,162.89,162.88,2.4785342]
[1754145744915,54.6123455,162.89,162.88,2.4785342]
[1754145745214,60.75145778,162.89,162.88,2.4785342]
[1754145745682,54.6123455,162.89,162.88,2.4785342]
[1754145748507,37.17766153,162.89,162.88,2.4785342]
[1754145749204,11.17766153,162.89,162.88,3.1785342]
[1754145749415,26.61327118,162.89,162.88,3.1785342]
[1754145749612,7.45990748,162.91,162.88,3.1785342]
[1754145749821,7.45990748,162.91,162.89,11.26439035]
[1754145750120,7.45990748,162.91,162.9,11.26439035]
[1754145751518,7.45990748,162.91,162.9,28.04907432]
[1754145752109,0.03,162.97,162.91,16.78468397]
[1754145752318,0.03,162.97,162.93,10.56439035]
[1754145752319,26.0,162.95,162.93,10.56439035]
[1754145752498,0.64327118,162.97,162.94,0.69]
[1754145752691,26.0,162.95,162.94,10.56439035]
[1754145752888,26.0,162.95,162.88,2.4785342]
[1754145752889,26.0,162.94,162.88,2.4785342]
[1754145753121,37.17766153,162.94,162.88,2.4785342]
[1754145753300,10.56439035,162.93,162.89,0.69]
[1754145753503,10.56439035,162.93,162.88,13.04292455]
[1754145753692,26.0,162.91,162.9,0.69]
[1754145754422,26.0,162.92,162.9,0.69]
[1754145754928,26.0,162.92,162.91,11.25439035]
[1754145755297,26.0,162.92,162.91,0.69]
[1754145756209,26.0,162.91,162.89,0.69]
[1754145756399,26.0,162.91,162.9,0.69]
[1754145756717,26.0,162.91,162.88,2.4785342]
[1754145756718,26.0,162.91,162.88,13.73292455]
[1754145756921,26.0,162.91,162.89,0.69]
[1754145757394,26.0,162.91,162.88,13.73292455]
[1754145757596,26.0,162.91,162.89,0.69]
[1754145757790,26.0,162.91,162.89,11.25439035]
[1754145758010,26.0,162.91,162.9,0.69]
[1754145758505,11.17766153,162.93,162.88,13.04292455]
[1754145758821,11.17766153,162.93,162.88,13.73292455]
[1754145759018,11.17766153,162.93,162.89,0.69]
[1754145759636,26.0,162.91,162.9,0.69]
[1754145761820,36.56439035,162.91,162.88,2.4785342]
[1754145762004,11.17766153,162.9,162.88,2.4785342]
[1754145762204,10.56439035,162.89,162.88,2.4785342]
[1754145762797,0.61327118,162.9,162.88,2.4785342]
[1754145763303,26.0,162.89,162.88,2.4785342]
[1754145763499,26.61327118,162.89,162.88,2.4785342]
[1754145763701,37.17766153,162.89,162.88,2.4785342]
[1754145763903,0.61327118,162.89,162.88,2.4785342]
[1754145764216,26.0,162.89,162.88,2.4785342]
[1754145764398,10.56439035,162.93,162.88,3.1685342]
[1754145764594,0.61327118,162.92,162.89,11.25439035]
[1754145764810,0.61327118,162.92,162.9,0.69]
[1754145765209,11.17766153,162.93,162.9,0.69]
[1754145765519,0.61327118,162.93,162.89,10.56439035]
[1754145765719,0.03,162.97,162.92,10.56439035]
[1754145765910,0.03,162.97,162.91,1.30383586]
[1754145766112,26.0,162.96,162.95,10.56439035]
[1754145766309,0.03,162.97,162.95,11.25439035]
[1754145766503,0.64327118,162.97,162.92,11.25439035]
[1754145766698,0.03,162.97,162.95,10.56439035]
[1754145766903,0.03,162.97,162.91,16.78468397]
[1754145767110,0.03,162.97,162.96,11.25439035]
[1754145768204,0.03,162.97,162.96,0.69]
[1754145768595,26.03,162.97,162.95,10.56439035]
[1754145768796,26.03,162.97,162.94,10.56439035]
[1754145769017,26.03,162.97,162.94,11.25439035]
[1754145769424,26.03,162.97,162.88,3.09248311]
[1754145769425,0.61327118,162.96,162.92,0.69]
[1754145769602,0.61327118,162.96,162.92,11.25439035]
[1754145769809,0.61327118,162.96,162.93,11.25439035]
[1754145770120,26.0,162.95,162.93,11.25439035]
[1754145770421,0.64327118,162.97,162.94,11.25439035]
[1754145770622,0.03,162.97,162.95,10.56439035]
[1754145770922,0.03,162.97,162.96,10.56439035]
[1754145771102,0.03,162.97,162.96,0.69]
[1754145771299,0.03,162.97,162.94,10.56439035]
[1754145771503,0.03,162.97,162.94,11.25439035]
[1754145771699,26.0,162.95,162.91,0.69]
[1754145771903,26.0,162.95,162.93,10.56439035]
[1754145772104,0.61327118,162.94,162.9,11.25439035]
[1754145772335,0.61327118,162.94,162.91,0.69]
[1754145772633,0.61327118,162.94,162.91,11.25439035]
[1754145773136,0.61327118,162.95,162.91,11.25439035]
[1754145773525,0.61327118,162.95,162.91,0.69]
[1754145773839,0.61327118,162.95,162.91,11.25439035]
[1754145775317,0.61327118,162.95,162.92,0.69]
[1754145775834,0.61327118,162.95,162.92,11.25439035]
[1754145777311,0.61327118,162.95,162.92,0.69]
[1754145777508,0.61327118,162.95,162.92,11.25439035]
[1754145777722,0.61327118,162.95,162.89,0.69]
[1754145777921,11.17766153,162.95,162.9,10.56439035]
[1754145778132,11.17766153,162.95,162.91,0.69]
[1754145778610,0.61327118,162.95,162.92,0.69]
[1754145779533,0.61327118,162.95,162.92,11.25439035]
[1754145779734,0.61327118,162.95,162.93,0.69]
[1754145779947,0.61327118,162.95,162.92,10.56439035]
[1754145780162,26.0,162.94,162.93,10.56439035]
[1754145780533,26.0,162.94,162.91,0.69]
[1754145780727,11.20766153,162.97,162.92,11.26439035]
[1754145781048,0.64327118,162.97,162.94,10.56439035]
[1754145781264,0.64327118,162.97,162.95,0.7]
[1754145781432,0.64327118,162.97,162.96,0.7]
[1754145781748,0.03,162.97,162.96,11.26439035]
[1754145782649,0.03,162.97,162.96,0.7]
[1754145782853,0.03,162.97,162.96,11.26439035]
[1754145783353,0.03,162.97,162.96,10.56439035]
[1754145783657,0.03,162.97,162.96,11.26439035]
[1754145785153,26.03,162.97,162.93,10.56439035]
[1754145785337,0.61327118,162.96,162.93,0.7]
[1754145785539,0.61327118,162.96,162.88,2.4785342]
[1754145785740,0.61327118,162.96,162.92,10.56439035]
[1754145786247,0.61327118,162.96,162.92,11.26439035]
[1754145786624,0.61327118,162.96,162.93,0.7]
[1754145786851,26.0,162.95,162.93,11.26439035]
[1754145787056,26.0,162.95,162.94,0.7]
[1754145787550,0.61327118,162.96,162.92,10.56439035]
[1754145787737,0.61327118,162.96,162.92,11.26439035]
[1754145788326,0.61327118,162.96,162.92,10.56439035]
[1754145788575,11.24439035,162.95,162.9,10.56439035]
[1754145788749,0.61327118,162.94,162.9,10.56439035]
[1754145788933,0.61327118,162.94,162.9,11.26439035]
[1754145789626,26.61327118,162.94,162.91,10.56439035]
[1754145790061,26.61327118,162.94,162.92,0.7]
[1754145791339,26.61327118,162.94,162.92,11.26439035]
[1754145791846,26.61327118,162.94,162.92,0.7]
[1754145792044,26.61327118,162.94,162.92,11.26439035]
[1754145792250,26.61327118,162.94,162.93,11.26439035]
[1754145792251,26.0,162.94,162.93,11.26439035]
[1754145792548,26.0,162.94,162.92,10.56439035]
[1754145792731,26.0,162.94,162.91,11.26439035]
[1754145792932,0.61327118,162.93,162.88,3.1785342]
[1754145793141,0.61327118,162.93,162.9,10.56439035]
[1754145793345,0.61327118,162.93,162.91,10.56439035]
[1754145793528,0.61327118,162.94,162.91,11.26439035]
[1754145793728,26.0,162.94,162.92,10.56439035]
[1754145794153,26.0,162.94,162.93,0.7]
[1754145794371,26.0,162.94,162.93,11.26439035]
[1754145794575,26.0,162.95,162.93,11.26439035]
[1754145795246,0.61327118,162.94,162.91,10.56439035]
[1754145795853,0.61327118,162.94,162.91,11.26439035]
[1754145796067,26.61327118,162.95,162.92,11.26439035]
[1754145796451,26.0,162.95,162.94,10.56439035]
[1754145796650,26.0,162.95,162.94,11.26439035]
[1754145796856,0.64327118,162.97,162.94,11.26439035]
[1754145797051,26.0,162.96,162.9,10.56439035]
[1754145797352,26.0,162.96,162.94,10.56439035]
[1754145797747,26.0,162.96,162.91,0.7]
[1754145797748,0.61327118,162.95,162.91,0.7]
[1754145797949,26.0,162.96,162.93,10.56439035]
[1754145798163,0.61327118,162.95,162.93,10.56439035]
[1754145798364,45.65327118,162.95,162.93,10.56439035]
[1754145799281,45.65327118,162.95,162.94,10.56439035]
[1754145799459,45.65327118,162.95,162.93,0.7]
[1754145799658,45.65327118,162.95,162.94,10.56439035]
[1754145800181,45.04,162.95,162.94,10.56439035]
[1754145801977,45.04,162.95,162.94,0.7]
[1754145802375,45.04,162.95,162.94,11.26439035]
[1754145802555,45.07,162.95,162.94,0.7]
[1754145802884,45.07,162.95,162.94,7.0423055]
[1754145803483,0.03,162.95,162.94,7.0423055]
[1754145803685,0.03,162.95,162.88,2.4785342]
[1754145803991,0.03,162.95,162.94,6.3423055]
[1754145804279,44.97,162.95,162.94,6.3423055]
[1754145804481,44.97,162.95,162.94,7.0423055]
[1754145805067,44.97,162.95,162.93,6.3423055]
[1754145805385,44.97,162.95,162.94,6.3423055]
[1754145807265,43.35078644,162.95,162.94,6.3423055]
[1754145807875,43.35078644,162.95,162.94,7.0423055]
[1754145808484,43.35078644,162.95,162.94,6.3423055]
[1754145808786,43.96405762,162.95,162.93,6.3423055]
[1754145809288,43.35078644,162.95,162.94,6.3423055]
[1754145809506,43.35078644,162.95,162.92,0.7]
[1754145809711,43.35078644,162.95,162.94,6.3423055]
[1754145811402,43.35078644,162.95,162.88,28.4785342]
[1754145811703,43.35078644,162.95,162.94,6.3423055]
[1754145811911,43.35078644,162.95,162.94,7.0123055]
[1754145812087,43.35078644,162.95,162.94,6.3423055]
[1754145812401,43.35078644,162.95,162.92,0.67]
[1754145812586,43.35078644,162.95,162.94,6.3423055]
[1754145812787,43.35078644,162.95,162.93,6.3423055]
[1754145813147,1.29327118,162.94,162.88,2.4785342]
[1754145813414,44.82,162.93,162.89,0.67]
[1754145813775,44.82,162.93,162.89,1.28391122]
[1754145814183,44.82,162.93,162.9,0.67]
[1754145814384,44.82,162.95,162.9,0.67]
[1754145814580,44.82,162.95,162.94,6.3423055]
[1754145814902,44.82,162.95,162.94,7.0123055]
[1754145815715,0.03,162.97,162.94,7.0123055]
[1754145815873,44.85,162.97,162.96,6.3423055]
[1754145816408,44.85,162.97,162.96,7.0123055]
[1754145817108,44.85,162.97,162.96,13.354611]
[1754145817308,0.03,162.97,162.96,13.354611]
[1754145818413,0.03,162.97,162.96,7.0123055]
[1754145818776,0.03,162.97,162.96,13.354611]
[1754145819711,0.03,162.97,162.96,0.67]
[1754145819917,0.03,162.97,162.96,13.354611]
[1754145822013,0.03,162.97,162.96,13.96825852]
[1754145822714,0.03,162.99,162.96,13.96825852]
[1754145823012,0.03,162.99,162.98,6.3423055]
[1754145823709,0.03,162.99,162.98,7.0123055]
[1754145825106,0.71,162.99,162.98,6.3423055]
[1754145825607,0.03,162.99,162.94,0.67]
[1754145825906,0.03,162.99,162.98,6.3423055]
[1754145826505,0.03,162.99,162.89,0.67]
[1754145826506,26.71,162.99,162.89,0.67]
[1754145826694,71.99327118,162.98,162.9,0.67]
[1754145826885,71.99327118,162.98,162.94,6.3423055]
[1754145827199,0.68,162.97,162.9,0.67]
[1754145827378,0.61327118,162.96,162.93,6.3423055]
[1754145827578,0.68,162.95,162.93,6.3423055]
[1754145827787,44.7,162.94,162.9,0.67]
[1754145827983,45.38,162.94,162.92,6.3423055]
[1754145828417,45.38,162.94,162.93,6.3423055]
[1754145828707,44.7,162.94,162.93,6.3423055]
[1754145831691,44.7,162.94,162.9,0.67]
[1754145832011,44.7,162.94,162.93,6.3423055]
[1754145832226,44.7,162.94,162.9,0.67]
[1754145832516,44.7,162.94,162.93,6.3423055]
[1754145833420,44.7,162.94,162.93,7.0123055]
[1754145833789,44.7,162.94,162.93,6.3423055]
[1754145834520,45.31327118,162.94,162.9,0.67]
[1754145834812,44.7,162.94,162.93,6.3423055]
[1754145836297,44.7,162.94,162.88,2.4785342]
[1754145836499,45.99327118,162.94,162.92,6.3423055]
[1754145836707,45.99327118,162.94,162.93,6.3423055]
[1754145836708,45.31327118,162.94,162.93,6.3423055]
[1754145837006,44.7,162.94,162.93,6.3423055]
[1754145837806,44.7,162.94,162.93,7.0123055]
[1754145838013,44.7,162.94,162.93,0.67]
[1754145838198,44.7,162.94,162.93,7.0123055]
[1754145838923,0.03,162.99,162.93,7.0123055]
[1754145838924,44.8,162.96,162.93,7.0123055]
[1754145839130,44.8,162.96,162.95,6.3423055]
[1754145839323,44.8,162.96,162.95,7.0123055]
[1754145839526,44.8,162.96,162.95,6.0123055]
[1754145839731,44.8,162.96,162.95,7.0123055]
[1754145840031,26.0,162.96,162.95,7.0123055]
[1754145840192,44.8,162.98,162.95,13.354611]
[1754145840392,44.8,162.98,162.97,6.3423055]
[1754145841539,45.46,162.98,162.9,0.61387354]
[1754145841697,45.46,162.98,162.9,1.28387354]
[1754145842015,44.8,162.98,162.97,6.3423055]
[1754145842323,45.46,162.98,162.96,6.3423055]
[1754145842532,26.0,162.96,162.95,6.3423055]
[1754145842826,26.0,162.96,162.95,7.0123055]
[1754145843906,26.0,162.96,162.95,6.3423055]
[1754145846239,26.0,162.96,162.95,7.0123055]
[1754145847215,26.0,162.96,162.95,6.3423055]
[1754145847623,26.03,162.96,162.95,6.3423055]
[1754145849908,26.03,162.96,162.93,0.06]
[1754145850111,26.03,162.96,162.95,6.3423055]
[1754145851331,26.03,162.96,162.93,0.06]
[1754145851332,26.0,162.95,162.93,0.06]
[1754145851498,0.03,162.99,162.93,0.06]
[1754145851499,0.03,162.99,162.94,12.684611]
[1754145851696,57.79158526,163.06,162.94,12.684611]
[1754145851697,4.64755344,163.05,162.98,6.3423055]
[1754145851917,12.85158526,163.06,163.04,12.684611]
[1754145852110,12.85158526,163.06,163.05,6.3423055]
[1754145852500,26.0,163.03,163.01,0.67]
[1754145852721,26.0,163.03,163.02,6.3423055]
[1754145853329,26.0,163.03,162.96,6.3423055]
[1754145853330,26.0,163.01,162.97,0.67]
[1754145853502,70.76,163.01,163.0,6.3423055]
[1754145853902,70.76,163.01,163.0,7.0123055]
[1754145854102,70.76,163.01,163.0,6.3423055]
[1754145855512,26.0,163.03,163.0,7.0123055]
[1754145855716,12.85158526,163.06,163.01,0.67]
[1754145856017,2286.03196734,163.0,162.99,42.78468397]
[1754145856323,2042.41911541,163.0,162.99,42.78468397]
[1754145857120,2042.41911541,163.0,162.99,55.46929497]
[1754145857326,1937.37749174,163.0,162.99,55.46929497]
[1754145857528,1937.37749174,163.0,162.99,65.46929497]
[1754145858033,1937.37749174,163.0,162.99,66.13929497]
[1754145858211,1824.81602863,163.0,162.99,66.13929497]
[1754145858539,1813.59703698,163.0,162.99,84.60929497]
[1754145859021,1789.82703698,163.0,162.99,90.74464069]
[1754145859337,1483.8313643,163.0,162.99,90.74464069]
[1754145859516,1483.8313643,163.0,162.99,185.68845543]
[1754145859832,1483.8313643,163.0,162.99,90.74464069]
[1754145860036,1483.8313643,163.0,162.99,72.58174664]
[1754145860212,1371.26990119,163.0,162.99,72.58174664]
[1754145860543,1360.05090954,163.0,162.99,111.37929497]
[1754145860907,1356.15646397,163.0,162.99,119.79297707]
[1754145861225,1257.33583807,163.0,162.99,138.23238907]
[1754145861532,1232.37600921,163.0,162.99,112.23238907]
[1754145862248,1143.40177495,163.0,162.99,138.23238907]
[1754145862548,1118.44194609,163.0,162.99,138.23238907]
[1754145862914,1104.70110888,163.0,162.99,112.23238907]
[1754145863113,1029.46771183,163.0,162.99,112.23238907]
[1754145863341,1004.50788297,163.0,162.99,112.23238907]
[1754145863926,1001.48309832,163.0,162.99,101.56238907]
[1754145864234,1001.48309832,163.0,162.99,10.54914655]
[1754145864536,1002.14309832,163.0,162.99,10.54914655]
[1754145864830,1001.48309832,163.0,162.99,10.54914655]
[1754145865031,1001.48309832,163.0,162.97,45.24]
[1754145865204,1002.14309832,163.0,162.99,10.54914655]
[1754145869845,1001.48309832,163.0,162.99,10.54914655]
[1754145870313,1002.14309832,163.0,162.99,10.54914655]
[1754145870517,1002.14309832,163.0,162.97,45.3]
[1754145870714,0.68,162.99,162.98,10.54914655]
[1754145871040,0.68,162.99,162.97,0.06]
[1754145872645,0.68,162.99,162.97,10.60914655]
[1754145873230,1046.62309832,163.0,162.97,10.60914655]